lending/lending_fUSD_20260306
["ID","MTS","AMOUNT","RATE_DAILY","PERIOD"]
[407862268,1772838641683,-200.0,0.00013699,2]
[407862269,1772838641692,-167.04486483,0.00013699,2]
[407862270,1772838641702,-500.0,0.00013767,2]
[407862271,1772838641711,-255.0,0.00013774,2]
[407862272,1772838641720,-642.69,0.00013861,2]
[407862273,1772838641729,-420.0,0.00013901,2]
[407862274,1772838641739,-4000.0,0.00013929,2]
[407862275,1772838641749,-526.0,0.00013939,2]
[407862276,1772838641758,-250.0,0.00013939,2]
[407862277,1772838641767,-300.0,0.00013939,2]
[407862278,1772838641777,-300.0,0.00013939,2]
[407862279,1772838641786,-300.0,0.00013939,2]
[407862280,1772838641796,-300.0,0.00013939,2]
[407862281,1772838641805,-448.2908813,0.00013939,2]
[407862282,1772838641814,-250.0,0.00013955,2]
[407862283,1772838641824,-600.0,0.00013955,2]
[407862284,1772838641833,-600.0,0.00013955,2]
[407862285,1772838641842,-600.0,0.00013955,2]
[407862286,1772838641852,-600.0,0.00013955,2]
[407862287,1772838641862,-600.0,0.00013955,2]
[407862288,1772838641871,-261.51039104,0.00013959,2]
[407862289,1772838641881,-176.14336431,0.00014201,2]
[407862290,1772838641890,-4000.0,0.00014261,2]
[407862291,1772838641901,-335.07997026,0.00014301,2]
[407862292,1772838641911,-4000.0,0.00014592,2]
[407862293,1772838641920,-5159.3838507,0.00014676,2]
[407862294,1772838641928,-1600.0,0.00014943,2]
[407862295,1772838641935,-1000.0,0.00014991,2]
[407862296,1772838641941,-2954.20351618,0.00015,14]
[407862297,1772838641949,-2327.55718638,0.00015,7]
[407862298,1772838641959,-250.0,0.00015,2]
[407862299,1772838641968,-250.0,0.0001509,2]
[407862300,1772838641978,-587.0,0.0001525,2]
[407862301,1772838641987,-498.6,0.00015471,2]
[407862302,1772838641996,-5159.3838507,0.00015721,2]
[407862303,1772838642005,-939.08871357,0.00015896,2]
[407862304,1772838642015,-8000.0,0.00016,2]
[407862305,1772838642024,-1045.17035254,0.00016097,2]
[407862306,1772838642033,-425.1932765,0.0001611,2]
[407862307,1772838642043,-214750.87131837,0.000162,5]
[407862308,1772838642052,-158.54,0.0001621,2]
[407862309,1772838642062,-158.54,0.0001648,2]
[407862310,1772838642071,-1600.0,0.00016604,2]
[407862311,1772838642080,-1000.0,0.00016657,2]
[407862312,1772838642089,-166.66,0.00016685,2]
[407862313,1772838642098,-939.08871357,0.00016697,2]
[407862314,1772838642108,-823.0,0.0001673,2]
[407862315,1772838642117,-158.54,0.0001675,2]
[407862316,1772838642127,-5159.3838507,0.00016765,2]
[407862317,1772838642136,-5621.12574049,0.000169,3]
[407862318,1772838642145,-508.0,0.00016924,5]
[407862319,1772838642155,-151.0,0.00016997,2]
[407862320,1772838642164,-194617.58720467,0.00017,2]
[407862321,1772838642178,-20822.98263625,0.00017,2]
[407862324,1772838642718,-1000.0,0.00012686,2]
[407862325,1772838642728,-1391.7840637,0.0001611,2]
[407862326,1772838642738,-101870.82966416,0.00017,2]
[407862327,1772838642747,-300.0,0.00017,2]
[407862328,1772838642756,-158.54,0.0001702,2]
[407862329,1772838642766,-166.66,0.00017036,2]
[407862330,1772838642775,-176.14336429,0.00017051,2]
[407862331,1772838642784,-981.87293994,0.0001711,2]
[407862332,1772838642794,-158.54,0.0001729,2]
[407862333,1772838642803,-166.66,0.00017387,2]
[407862334,1772838642813,-500.0,0.00017442,2]
[407862335,1772838642822,-939.08871357,0.00017498,2]
[407862336,1772838642831,-158.54,0.0001756,2]
[407862337,1772838642840,-166.66,0.00017738,2]
[407862338,1772838642850,-2469.75,0.00017809,2]
[407862339,1772838642860,-5159.3838507,0.0001781,2]
[407862340,1772838642870,-158.54,0.0001783,2]
[407862341,1772838642880,-45597.17632596,0.00017898,2]
[407862342,1772838642889,-3397.81,0.00017934,2]
[407862343,1772838642899,-12798.57558659,0.0001799,2]
[407862344,1772838642908,-1045.17035253,0.00017999,2]
[407862345,1772838642917,-43894.92938619,0.00018,2]
[407862346,1772838642928,-425.19327648,0.00018005,3]
[407862347,1772838642938,-166.66,0.0001809,2]
[407862348,1772838642948,-158.54,0.000181,2]
[407862349,1772838642958,-1182.732454,0.0001824,7]
[407862350,1772838642968,-1600.0,0.00018264,2]
[407862351,1772838642977,-939.08871357,0.00018298,2]
[407862352,1772838642987,-1000.0,0.00018322,2]
[407862353,1772838642996,-1152.0,0.00018353,2]
[407862354,1772838643005,-158.54,0.0001837,2]
[407862355,1772838643014,-166.66,0.00018441,2]
[407862356,1772838643025,-168.0,0.00018567,2]
[407862357,1772838643035,-168.0,0.00018632,2]
[407862358,1772838643044,-168.0,0.00018638,2]
[407862359,1772838643053,-158.54,0.0001864,2]
[407862360,1772838643062,-168.0,0.00018823,2]
[407862361,1772838643071,-158.54,0.0001891,2]
[407862362,1772838643082,-168.0,0.00018959,2]
[407862363,1772838643093,-1127.68303748,0.00019,3]
[407862364,1772838643104,-2623.68709664,0.00019,2]
[407862365,1772838643113,-1031.12,0.00019007,2]
[407862366,1772838643123,-360.39836175,0.0001901,7]
[407862367,1772838643132,-168.0,0.00019096,2]
[407862368,1772838643142,-939.08871357,0.00019099,2]
[407862369,1772838643152,-622.66,0.00019178,30]
[407862370,1772838643162,-158.54,0.0001918,2]
[407862371,1772838643171,-172.74325605,0.00019388,2]
[407862372,1772838643181,-160.0,0.00019388,2]
[407862373,1772838643191,-230.42471314,0.00019397,2]
[407862374,1772838643200,-158.54,0.0001945,2]
[407862375,1772838643209,-1600.0,0.000195,7]
[407862376,1772838643219,-168.0,0.00019537,2]
[407862377,1772838643230,-300.0,0.000196,7]
[407862378,1772838643239,-168.0,0.00019695,2]
[407862379,1772838643248,-11914.31514552,0.000197,3]
[407862380,1772838643258,-300.0,0.000197,7]
[407862381,1772838643267,-158.54,0.0001972,2]
[407862382,1772838643276,-300.0,0.000198,7]
[407862383,1772838643285,-939.08871357,0.000199,2]
[407862384,1772838643294,-1045.17035253,0.000199,2]
[407862385,1772838643304,-425.19327648,0.000199,3]
[407862386,1772838643313,-176.14336429,0.000199,2]
[407862387,1772838643323,-300.0,0.000199,7]
[407862388,1772838643332,-1600.0,0.00019924,2]
[407862389,1772838643341,-48772.07276891,0.0001995,15]
[407862390,1772838643351,-230.20999899,0.0001995,7]
[407862391,1772838643361,-119258.6679168,0.0001998,2]
[407862392,1772838643372,-1000.0,0.00019988,2]
[407862393,1772838643384,-158.54,0.0001999,2]
[407862394,1772838643394,-151.0,0.00019997,2]
[407862395,1772838643405,-341939.38896552,0.0002,2]
[407862397,1772838643607,-8410.19288311,0.0002,2]
[407862400,1772838643731,-28549.36489582,0.0002,2]
[407862403,1772838643742,-707.48499536,0.0002,2]
[407862411,1772838645694,-452.27786794,0.0002,2]
[407862412,1772838645706,-10731.19019657,0.0002,2]
[407862413,1772838645719,-452.95212555,0.0002,2]
[407862414,1772838645756,-2485.95076643,0.0002,2]
[407862416,1772838645875,-362.7,0.0002,2]
[407862418,1772838645889,-890.74413196,0.0002,2]
[407862420,1772838735182,500.0,0.0001142,2]
[407862421,1772838735337,500.0,0.0001142,2]
[407862422,1772838735415,500.0,0.0001142,2]
[407862423,1772838735555,500.0,0.0001142,2]
[407862424,1772838735651,500.0,0.0001142,2]
[407862425,1772838735792,500.0,0.0001142,2]
[407862426,1772838735887,500.0,0.0001142,2]
[407862427,1772838736391,500.0,0.0001142,2]
[407862428,1772838736930,173.20222045,0.0001142,2]
[407862429,1772838737412,500.0,8e-05,2]
[407862430,1772838737656,515.13819556,8e-05,2]
[407862431,1772838737881,500.0,8e-05,2]
[407862432,1772838738354,500.0,8e-05,2]
[407862433,1772838738989,500.0,8e-05,2]
[407862434,1772838741395,500.0,8e-05,2]
[407862435,1772838741878,557.04339442,8e-05,2]
[407862436,1772838742130,500.0,8e-05,2]
[407862437,1772838742747,500.0,8e-05,2]
[407862438,1772838743249,620.33713069,8e-05,2]
[407862439,1772838745198,500.0,8e-05,2]
[407862440,1772838745502,500.0,8e-05,2]
[407862441,1772838745974,500.0,8e-05,2]
[407862442,1772838746012,600.0,8e-05,2]
[407862443,1772838746651,500.0,8e-05,2]
[407862444,1772838746985,948.24735875,8e-05,2]
[407862445,1772838748512,760.0,8e-05,2]
[407862446,1772838749997,499.24392058,8e-05,2]
[407862447,1772838750027,0.75607942,8e-05,2]
[407862448,1772838750424,555.3748858,8e-05,2]
[407862452,1772839057313,-203.68069206,0.00011192,2]
[407862453,1772839057341,-500.0,0.00011263,2]
[407862454,1772839057370,-250.0,0.00011292,2]
[407862455,1772839057397,-2845.21426307,0.0001132,2]
[407862456,1772839057425,-642.97646691,0.00011337,2]
[407862457,1772839057452,-300.0,0.00011418,2]
[407862458,1772839057485,-216.26715592,0.00011418,2]
[407862459,1772839057734,-3170.62294,0.00011136,2]
[407862460,1772839057762,-83.73284408,0.00011418,2]
[407862461,1772839057790,-279.0,0.00011419,2]
[407862462,1772839057817,-150.0,0.00011419,2]
[407862463,1772839057845,-1200.0,0.00011419,2]
[407862464,1772839057891,-326.79777955,0.0001142,2]
[407862465,1772839057921,-500.0,0.0001142,2]
[407862466,1772839057950,-500.0,0.0001142,2]
[407862467,1772839057977,-500.0,0.0001142,2]
[407862468,1772839058005,-500.0,0.0001142,2]
[407862469,1772839058067,-500.0,0.0001142,2]
[407862470,1772839058125,-500.0,0.0001142,2]
[407862471,1772839058179,-500.0,0.0001142,2]
[407862472,1772839058233,-500.0,0.0001142,2]
[407862473,1772839058288,-500.0,0.0001142,2]
[407862474,1772839060236,-500.0,0.0001142,2]
[407862475,1772839060307,-500.0,0.0001142,2]
[407862476,1772839060377,-500.0,0.0001142,2]
[407862477,1772839060437,-500.0,0.0001142,2]
[407862478,1772839060499,-500.0,0.0001142,2]
[407862479,1772839060557,-604.37882443,0.0001142,2]
[407862480,1772839060619,-500.0,0.0001142,2]
[407862481,1772839060675,-473.57406555,0.0001142,2]
[407862482,1772839060729,-500.0,0.0001142,2]
[407862483,1772839060784,-344.10422004,0.0001142,2]
[407862484,1772839061010,-155.89577996,0.0001142,2]
[407862485,1772839061069,-500.0,0.0001142,2]
[407862486,1772839061130,-473.11746355,0.0001142,2]
[407862487,1772839061189,-524.62574856,0.0001142,2]
[407862488,1772839061249,-500.0,0.0001142,2]
[407862489,1772839061311,-269.3417456,0.0001142,2]
[407862490,1772839061373,-350.0662126,0.00011584,2]
[407862491,1772839061434,-861.0,0.00012165,2]
[407862492,1772839061491,-200.0,0.00012234,2]
[407862493,1772839062891,167.55,9.819e-05,2]
[407862494,1772839063419,-167.55,0.00011046,2]
[407862495,1772839063481,-167.55,0.00012274,2]
[407862496,1772839063544,-4329.81,0.00012311,2]
[407862497,1772839063936,-670.19,0.00012311,2]
[407862498,1772839063995,-500.0,0.00012358,2]
[407862499,1772839064049,-300.34586323,0.00012358,2]
[407862500,1772839064107,-250.0,0.00012389,2]
[407862501,1772839064165,-255.0,0.00012481,2]
[407862502,1772839064226,-267.37441405,0.00012499,2]
[407862503,1772839064281,-1804.75830306,0.00012499,2]
[407862504,1772839064341,-300.0,0.00012499,2]
[407862505,1772839064404,-239.65332295,0.000125,3]
[407862506,1772839064465,-202.55639929,0.000125,3]
[407862507,1772839064773,-420.25339484,0.000125,3]
[407862508,1772839064833,-675.09929708,0.000125,3]
[407862509,1772839064890,-420.0,0.00012542,2]
[407862510,1772839064945,-1680.0,0.00012561,2]
[407862511,1772839065000,-539.07997026,0.00012637,2]
[407862512,1772839065061,-789.06377927,0.00012657,2]
[407862513,1772839394159,-156.69,0.000104,2]
[407862514,1772839394477,-259.47,0.00011602,2]
[407862515,1772839394540,-2679.16,0.00011619,2]
[407862516,1772839394601,-203.68069205,0.00011834,2]
[407862517,1772839394661,-503.40655487,0.00011873,2]
[407862518,1772839394724,-500.0,0.00011873,2]
[407862519,1772839394780,-501.72819961,0.00011873,2]
[407862520,1772839394836,-150.0,0.00011873,2]
[407862521,1772839398591,1388.81305429,0.00010331,2]
[407862522,1772839400130,-3319.98,0.00011489,2]
[407862523,1772839400192,-300.0,0.00011873,2]
[407862524,1772839400250,-300.0,0.00011873,2]
[407862525,1772839406218,-7574.72375565,0.00011874,2]
[407862526,1772839544092,-150.0,0.00011873,2]
[407862527,1772839544114,-451.14883602,0.00011873,2]
[407862528,1772839600155,-327.50538008,0.00011628,2]
[407862529,1772839637125,-150.0,0.00011451,2]
[407862530,1772839637146,-45.54853931,0.00011627,2]
[407862531,1772839640915,500.0,8e-05,2]
[407862532,1772839640950,721.55039257,8e-05,2]
[407862533,1772839641378,791.80789358,8e-05,2]
[407862534,1772839645017,863.9453546,8e-05,2]
[407862535,1772839646593,500.0,8e-05,2]
[407862536,1772839647055,500.0,8e-05,2]
[407862537,1772839647532,500.0,8e-05,2]
[407862538,1772839648006,516.85680444,8e-05,2]
[407862539,1772839651767,505.79542106,8e-05,2]
[407862540,1772839651955,507.13807355,8e-05,2]
[407862541,1772839750124,-284.3,0.00011271,2]
[407862542,1772839750146,-5000.0,0.00011276,2]
[407862543,1772839750167,-352.187629,0.0001128,2]
[407862544,1772839750188,-250.0,0.00011345,2]
[407862545,1772839750211,-275.77736363,0.00011345,2]
[407862546,1772839750233,-4546.62640114,0.00011347,2]
[407862547,1772839750258,-1200.0,0.00011419,2]
[407862548,1772839750279,-300.0,0.00011419,2]
[407862549,1772839750301,-500.0,0.0001142,2]
[407862550,1772839750322,-500.0,0.0001142,2]
[407862551,1772839750342,-500.0,0.0001142,2]
[407862552,1772839750363,-500.0,0.0001142,2]
[407862553,1772839750384,-500.0,0.0001142,2]
[407862554,1772839750406,-500.0,0.0001142,2]
[407862555,1772839750432,-500.0,0.0001142,2]
[407862556,1772839750454,-500.0,0.0001142,2]
[407862557,1772839750477,-452.73813573,0.0001142,2]
[407862558,1772839751088,-47.26186427,0.0001142,2]
[407862559,1772839751111,-521.68330113,0.0001142,2]
[407862560,1772839751133,-505.1580482,0.0001142,2]
[407862561,1772839751155,-500.0,0.0001142,2]
[407862562,1772839751176,-500.0,0.0001142,2]
[407862563,1772839751197,-528.19748792,0.0001142,2]
[407862564,1772839751218,-250.0,0.00011473,2]
[407862565,1772839751241,-254.45146069,0.00011627,2]
[407862566,1772839751260,-889.28064779,0.00011628,2]
[407862570,1772839831796,-500.0,0.00011431,2]
[407862571,1772839831807,-250.0,0.00011431,2]
[407862572,1772839831816,-244.0,0.00011431,2]
[407862573,1772839831829,-143.77450429,0.00011437,2]
[407862574,1772839831840,-578.80881412,0.00011437,2]
[407862576,1772839831902,-1296.44850723,0.00011437,2]
[407862577,1772839832008,-2980.96817436,0.00011437,2]
[407862579,1772839832018,-184.86,0.00011443,2]
[407862580,1772839832028,-295.07650273,0.00011618,2]
[407862582,1772839832037,-300.0,0.00011618,2]
[407862584,1772839832047,-300.0,0.00011618,14]
[407862586,1772839832056,-300.0,0.00011627,2]
[407862588,1772839832066,-300.0,0.00011627,2]
[407862590,1772839832076,-300.0,0.00011627,2]
[407862593,1772839832086,-1200.0,0.00011627,2]
[407862596,1772839832096,-300.0,0.00011627,2]
[407862599,1772839832106,-9526.09397213,0.00011628,2]
[407862601,1772839832116,-596.03488162,0.00011642,2]
[407862603,1772839832128,-265.648545,0.00011656,2]
[407862604,1772839832140,-7381.88331208,0.00011775,2]
[407862605,1772839832150,-964.06793134,0.00011873,2]
[407862606,1772839832160,-892.86053309,0.00011873,2]
[407862607,1772839832169,-150.0,0.00011873,2]
[407862608,1772839832179,-207176.14624435,0.00011874,2]
[407862609,1772839832188,-273.43627,0.00011875,2]
[407862610,1772839832198,-284.3,0.00011898,2]
[407862611,1772839832208,-264.01328752,0.00011934,2]
[407862612,1772839832218,-600.15661921,0.00011934,2]
[407862613,1772839832228,-41342.229167,0.00011935,2]
[407862614,1772839832238,-999.99,0.00012001,2]
[407862615,1772839832247,-150.99,0.00012001,2]
[407862616,1772839832257,-16756.87,0.00012002,2]
[407862617,1772839832266,-289.0,0.0001227,2]
[407862618,1772839832275,-783.0,0.00012373,2]
[407862619,1772839832285,-250.0,0.00012399,2]
[407862620,1772839832294,-500.0,0.00012399,2]
[407862621,1772839832304,-5000.0,0.00012399,2]
[407862622,1772839832313,-2660.89642746,0.000124,2]
[407862623,1772839832323,-9999.99,0.000124,2]
[407862624,1772839832332,-499.99,0.000124,2]
[407862625,1772839832341,-1565.73,0.000124,2]
[407862626,1772839832353,-312.02,0.000124,2]
[407862627,1772839832363,-299.99,0.000124,2]
[407862628,1772839832372,-150.99,0.000124,2]
[407862629,1772839832381,-1663.17451847,0.00012443,2]
[407862630,1772839832391,-198.10744003,0.000125,2]
[407862631,1772839832401,-306.5631046,0.000125,3]
[407862632,1772839832410,-284.3,0.00012524,2]
[407862633,1772839832419,-61983.16123075,0.00012532,2]
[407862634,1772839832428,-867.0,0.00012543,2]
[407862635,1772839832438,-198.10744003,0.00012561,2]
[407862636,1772839832447,-163.17298866,0.00012573,2]
[407862637,1772839832457,-500.0,0.00012573,2]
[407862638,1772839832466,-500.0,0.00012573,2]
[407862639,1772839832475,-5000.0,0.00012574,2]
[407862640,1772839832484,-250.0,0.00012574,2]
[407862641,1772839832494,-3991.55051219,0.00012586,2]
[407862642,1772839832504,-1100.0,0.000126,4]
[407862643,1772839832514,-348.39011752,0.000126,2]
[407862644,1772839832524,-1000.0,0.00012656,2]
[407862645,1772839832533,-164.58908084,0.00012657,2]
[407862646,1772839832542,-232.81899405,0.00012676,2]
[407862647,1772839832551,-7381.88331204,0.00012678,2]
[407862648,1772839832561,-422.53,0.00012678,2]
[407862649,1772839832570,-500.0,0.00012678,2]
[407862650,1772839832579,-500.0,0.00012678,2]
[407862651,1772839832588,-500.0,0.00012678,2]
[407862652,1772839832598,-151.0,0.00012678,2]
[407862653,1772839832607,-151.0,0.00012678,2]
[407862654,1772839832617,-500.0,0.00012678,2]
[407862655,1772839832626,-151.0,0.00012678,2]
[407862656,1772839832636,-500.0,0.00012678,2]
[407862657,1772839832645,-151.0,0.00012678,2]
[407862658,1772839832654,-500.0,0.00012678,2]
[407862659,1772839832663,-151.0,0.00012678,2]
[407862660,1772839832673,-500.0,0.00012678,2]
[407862661,1772839832682,-151.0,0.00012678,2]
[407862662,1772839832691,-500.0,0.00012678,2]
[407862663,1772839832700,-151.0,0.00012678,2]
[407862664,1772839832710,-500.0,0.00012678,2]
[407862665,1772839832720,-151.0,0.00012678,2]
[407862666,1772839832729,-500.0,0.00012678,2]
[407862667,1772839832738,-151.0,0.00012678,2]
[407862668,1772839832748,-500.0,0.00012678,2]
[407862669,1772839832757,-151.0,0.00012678,2]
[407862670,1772839832766,-151.0,0.00012678,2]
[407862671,1772839832775,-200.0,0.00012678,2]
[407862672,1772839832784,-500.0,0.00012678,2]
[407862673,1772839832793,-500.0,0.00012678,2]
[407862674,1772839832802,-500.0,0.00012678,2]
[407862675,1772839832812,-500.0,0.00012678,2]
[407862676,1772839832823,-500.0,0.00012678,2]
[407862677,1772839832833,-500.0,0.00012678,2]
[407862678,1772839832842,-500.0,0.00012678,2]
[407862679,1772839832852,-500.0,0.00012678,2]
[407862680,1772839832863,-500.0,0.00012678,2]
[407862681,1772839832872,-500.0,0.00012678,2]
[407862682,1772839832882,-500.0,0.00012678,2]
[407862683,1772839832892,-151.0,0.00012678,2]
[407862684,1772839832903,-151.0,0.00012678,2]
[407862685,1772839832913,-151.0,0.00012678,2]
[407862686,1772839832922,-151.0,0.00012678,2]
[407862687,1772839832931,-151.0,0.00012678,2]
[407862688,1772839832940,-151.0,0.00012678,2]
[407862689,1772839832950,-151.0,0.00012678,2]
[407862690,1772839832960,-151.0,0.00012678,2]
[407862691,1772839832969,-151.0,0.00012678,2]
[407862692,1772839832978,-151.0,0.00012678,2]
[407862693,1772839832987,-151.0,0.00012678,2]
[407862694,1772839832996,-151.0,0.00012678,2]
[407862695,1772839833005,-151.0,0.00012678,2]
[407862696,1772839833014,-151.0,0.00012678,2]
[407862697,1772839833023,-151.0,0.00012678,2]
[407862698,1772839833033,-151.0,0.00012678,2]
[407862699,1772839833042,-151.0,0.00012678,2]
[407862700,1772839833051,-151.0,0.00012678,2]
[407862701,1772839833060,-151.0,0.00012678,2]
[407862702,1772839833069,-151.0,0.00012678,2]
[407862703,1772839833079,-151.0,0.00012678,2]
[407862704,1772839833088,-151.0,0.00012683,2]
[407862705,1772839833097,-1008.35756595,0.00012685,3]
[407862706,1772839833107,-195.9493435,0.00012685,2]
[407862707,1772839833116,-179.39145694,0.00012685,2]
[407862708,1772839833126,-166.29300835,0.00012685,2]
[407862709,1772839833135,-11518.4347,0.00012686,2]
[407862710,1772839833144,-238517.72954464,0.00012686,2]
[407862711,1772839833157,-52726.9592865,0.00012686,2]
[407862713,1772839837887,-220.17920538,0.000126,2]
[407862714,1772839837898,-360.96092142,0.000126,2]
[407862715,1772839837976,-566.89512104,0.000126,2]
[407862716,1772839837985,-42.46859474,0.00012686,2]
[407862717,1772839838064,-3031.01772585,0.00012686,2]
[407862720,1772839838188,-3169.73692022,0.00012686,2]
[407862722,1772839838199,-304.80831993,0.00012686,2]
[407862724,1772839838210,-340.64224758,0.00012686,2]
[407862732,1772839840396,-1407.52319047,0.00012686,2]
[407862733,1772839840630,-1855510.56200469,0.00012686,2]
[407862734,1772839840648,-3320.02797806,0.00012686,2]
[407862752,1772839843172,-1482.27027253,0.00012686,2]
[407862753,1772839845809,-153872.45440832,0.00012686,2]
[407862754,1772839846044,-1692.2736255,0.00012686,2]
[407862755,1772839846056,-601.71500188,0.00012686,2]
[407862757,1772839846145,-478.63016032,0.00012686,2]
[407862766,1772839846237,-467.74106694,0.00012686,2]
[407862769,1772839846248,-6830.4,0.00012686,2]
[407862771,1772839846259,-462.31600011,0.00012686,2]
[407862773,1772839846270,-14528.17537341,0.00012686,2]
[407862932,1772840138914,-2126.48719679,0.0001132,2]
[407862933,1772840139007,-182.42622987,0.0001132,2]
[407862934,1772840139033,-97.57377013,0.0001142,2]
[407862935,1772840139104,-72.0176425,0.0001142,2]
[407862936,1772840238590,136.88774076,8e-05,2]
[407862937,1772840238614,280.0,8e-05,2]
[407862938,1772840238639,94.82766232,8e-05,2]
[407862940,1772840404260,185.17233768,0.0001142,2]
[407862941,1772840404286,57.82766232,0.0001142,2]
[407862942,1772840452998,-500.0,0.0001142,2]
[407862943,1772840453032,-500.0,0.0001142,2]
[407862944,1772840453067,-2393.42,0.00011507,2]
[407862945,1772840453097,-250.0,0.00011774,2]
[407862946,1772840453125,-150.0,0.0001181,2]
[407862947,1772840453152,-835.623854,0.00011948,2]
[407862948,1772840453181,-234.05964923,0.00011982,2]
[407862949,1772840468885,-273.80299354,0.00011982,2]
[407862950,1772840468914,-250.0,0.00011995,2]
[407862951,1772840468944,-200.0,0.00012008,2]
[407862952,1772840468973,-250.0,0.00012089,2]
[407862953,1772840469182,-300.0,0.00012187,2]
[407862954,1772840469215,-1200.0,0.00012187,2]
[407862955,1772840469245,-300.0,0.00012188,2]
[407862956,1772840469275,-702.54,0.00012189,2]
[407862957,1772840469575,-1896.09957391,0.00012189,2]
[407862958,1772840473833,-4180.26042609,0.00012189,2]
[407862959,1772840473866,-500.0,0.00012218,3]
[407862960,1772840473900,-131.62650507,0.00012234,2]
[407862961,1772840473958,-376.23613768,0.00012234,2]
[407862962,1772840539372,979.61,5.891e-05,2]
[407862963,1772840539569,979.61,6.201e-05,2]
[407862964,1772840539781,979.61,6.511e-05,2]
[407862965,1772840540005,979.61,6.821e-05,2]
[407862966,1772840540214,979.61,7.131e-05,2]
[407862967,1772840540413,979.61,7.441e-05,2]
[407862968,1772840540648,979.61,7.751e-05,2]
[407862969,1772840540844,979.61,8.061e-05,2]
[407862970,1772840541057,979.61,8.371e-05,2]
[407862971,1772840541274,979.61,8.681e-05,2]
[407862972,1772840541464,203.91,8.991e-05,2]
[407862973,1772840541495,775.7,8.991e-05,2]
[407862974,1772840541670,979.61,9.301e-05,2]
[407862975,1772840541881,979.61,9.611e-05,2]
[407862976,1772840542079,979.61,9.921e-05,2]
[407862977,1772840542363,979.61,0.00010231,2]
[407862979,1772840618620,-979.61,0.00010541,2]
[407862980,1772840618651,-979.61,0.00010851,2]
[407862981,1772840618686,-200.0,0.00010927,2]
[407862982,1772840618718,-169.28754759,0.00011061,2]
[407862983,1772840618755,-979.61,0.00011161,2]
[407862984,1772840618785,-255.0,0.0001142,2]
[407862985,1772840618816,-151.10650148,0.0001142,2]
[407862986,1772840618850,-979.61,0.00011471,2]
[407862987,1772840618883,-269.62516553,0.00011595,2]
[407862988,1772840619073,-500.0,0.00011621,2]
[407862989,1772840619104,-1973.90056,0.00011714,2]
[407862990,1772840619134,-169.28754758,0.00011774,2]
[407862991,1772840619166,-979.61,0.00011781,2]
[407862992,1772840619196,-164.433249,0.00011956,2]
[407862993,1772840621598,-4999.99,0.00011956,2]
[407862994,1772840628606,-166.66,0.00011192,2]
[407862995,1772840628636,-166.66,0.00011428,2]
[407862996,1772840628665,-166.66,0.00011664,2]
[407862997,1772840628693,-166.66,0.00011899,2]
[407862998,1772840628720,-3361.02,0.00011956,2]
[407862999,1772840628875,-1944.69,0.00011956,2]
[407863000,1772840628908,-166.66,0.00012135,2]
[407863001,1772840628939,-166.66,0.00012135,2]
[407863002,1772840628972,-150.99,0.00012135,2]
[407863003,1772840631672,-2679.55,0.00012135,2]
[407863004,1772840631721,-4226.26885764,0.00012135,2]
[407863005,1772840634824,-414.64114236,0.00012135,2]
[407863006,1772840634854,-166.66,0.0001237,2]
[407863007,1772840634886,-931.96105079,0.000124,3]